bitfinex-derivatives/quotes_BTCF0:USTF0_20241208
["timestamp","ask_amount","ask_price","bid_price","bid_amount"]
[1733656677950,0.45696385,99413.0,99412.0,0.03544111]
[1733656678252,0.5058593,99413.0,99412.0,0.03544111]
[1733656679559,0.5058593,99413.0,99412.0,0.02915367]
[1733656680158,0.5058593,99413.0,99412.0,0.02915407]
[1733656680546,0.68669941,99413.0,99412.0,0.02915407]
[1733656680746,0.5058593,99413.0,99412.0,0.02915407]
[1733656681151,0.5058593,99413.0,99412.0,0.02098]
[1733656681350,0.68669941,99413.0,99412.0,0.02098]
[1733656681954,0.5058593,99413.0,99412.0,0.02098]
[1733656682551,0.64142298,99413.0,99412.0,0.02098]
[1733656683158,0.64142298,99413.0,99412.0,0.02915433]
[1733656683964,0.7986459,99413.0,99412.0,0.02915433]
[1733656685161,0.64142298,99413.0,99412.0,0.0291543]
[1733656685467,0.64142298,99413.0,99412.0,0.0298643]
[1733656686060,0.79890949,99413.0,99412.0,0.0298643]
[1733656686663,0.64142298,99413.0,99412.0,0.0298643]
[1733656687163,0.85265361,99413.0,99412.0,0.0298643]
[1733656687366,0.79932978,99413.0,99412.0,0.0298643]
[1733656687963,0.85264316,99413.0,99412.0,0.0298643]
[1733656688768,0.85264316,99413.0,99412.0,0.02986443]
[1733656690763,0.64167384,99413.0,99412.0,0.02986443]
[1733656690967,0.50586343,99413.0,99412.0,0.02986443]
[1733656691275,0.50586343,99413.0,99412.0,0.02483401]
[1733656691765,0.50586422,99413.0,99412.0,0.02483401]
[1733656691970,0.50586431,99413.0,99412.0,0.02483401]
[1733656695567,0.14506431,99413.0,99412.0,0.02483401]
[1733656695761,0.86666431,99413.0,99412.0,0.02483401]
[1733656696868,0.86666473,99413.0,99412.0,0.02483401]
[1733656698180,0.86666473,99413.0,99412.0,0.02986448]
[1733656698562,1.00233546,99413.0,99412.0,0.02986448]
[1733656699066,1.15988411,99413.0,99412.0,0.00367622]
[1733656700175,1.40100992,99413.0,99412.0,0.00367622]
[1733656700673,1.15988411,99413.0,99412.0,0.00367622]
[1733656701672,1.15850724,99413.0,99412.0,0.00367622]
[1733656703571,1.39969874,99413.0,99412.0,0.00367622]
[1733656703774,1.15850724,99413.0,99412.0,0.00367622]
[1733656704076,1.00171145,99413.0,99412.0,0.00367622]
[1733656704577,1.15843378,99413.0,99412.0,0.00367622]
[1733656706076,1.00171145,99413.0,99411.0,0.00822]
[1733656706276,0.04890069,99412.0,99411.0,0.00822]
[1733656706673,0.04890097,99412.0,99411.0,0.00822]
[1733656707673,0.13501389,99412.0,99411.0,0.00822]
[1733656707883,0.18391486,99412.0,99411.0,0.00822]
[1733656708086,0.18391486,99412.0,99411.0,0.01122]
[1733656708386,0.18491486,99412.0,99411.0,0.01722]
[1733656708782,0.001,99412.0,99411.0,0.01722]
[1733656708976,0.18492838,99412.0,99411.0,0.01722]
[1733656709167,0.18492838,99412.0,99411.0,0.02225048]
[1733656710177,0.18492838,99412.0,99411.0,0.02225045]
[1733656711197,0.18492838,99412.0,99411.0,0.02539447]
[1733656711482,0.18496333,99412.0,99411.0,0.01722]
[1733656711676,0.18496333,99412.0,99411.0,0.02539446]
[1733656713882,0.18496333,99412.0,99411.0,0.02539453]
[1733656715480,0.39604156,99412.0,99411.0,0.02539453]
[1733656715675,0.18496333,99412.0,99411.0,0.02539453]
[1733656716181,0.18496333,99412.0,99411.0,0.03168263]
[1733656716785,0.90656333,99412.0,99411.0,0.03168263]
[1733656717272,0.90656333,99412.0,99411.0,0.02539453]
[1733656717872,0.90656333,99412.0,99411.0,0.03168263]
[1733656718073,0.90656333,99412.0,99411.0,0.02539453]
[1733656718289,0.90656333,99412.0,99411.0,0.03168263]
[1733656719385,0.90656333,99412.0,99411.0,0.02539453]
[1733656721188,1.30448085,99412.0,99411.0,0.02539453]
[1733656721384,1.06328935,99412.0,99411.0,0.02539453]
[1733656721880,1.30467223,99412.0,99411.0,0.02539453]
[1733656723291,1.06328935,99412.0,99411.0,0.02539453]
[1733656723792,1.06328935,99412.0,99411.0,0.02239453]
[1733656723793,1.30572417,99412.0,99411.0,0.02239453]
[1733656724386,1.06328935,99412.0,99411.0,0.01639453]
[1733656724687,1.06428935,99412.0,99411.0,0.01639453]
[1733656725791,1.24229143,99412.0,99401.0,0.01023068]
[1733656726085,1.24229143,99412.0,99401.0,0.00013068]
[1733656726086,0.3608,99402.0,99401.0,0.00013068]
[1733656726281,0.70008181,99402.0,99401.0,0.00516152]
[1733656727389,0.70008181,99402.0,99401.0,0.00616152]
[1733656727590,0.70008181,99402.0,99401.0,0.00916152]
[1733656728184,0.70008181,99402.0,99401.0,0.00413068]
[1733656728485,0.70008181,99402.0,99401.0,0.01244996]
[1733656728486,0.54407335,99402.0,99401.0,0.01244996]
[1733656728678,0.54407335,99402.0,99401.0,0.01544996]
[1733656729079,0.40970456,99402.0,99401.0,0.01544996]
[1733656729793,0.40970456,99402.0,99401.0,0.00916147]
[1733656731193,0.4097047,99402.0,99401.0,0.00916147]
[1733656731490,0.41987901,99402.0,99401.0,0.00916147]
[1733656733994,0.60081761,99402.0,99401.0,0.00916147]
[1733656735390,0.60081761,99402.0,99401.0,0.00916154]
[1733656735594,0.24001761,99402.0,99401.0,0.00916154]
[1733656735797,0.60081761,99402.0,99401.0,0.00916154]
[1733656737495,0.24001761,99402.0,99401.0,0.00916154]
[1733656737894,0.60081761,99402.0,99401.0,0.01230581]
[1733656739895,0.41987901,99402.0,99401.0,0.01230581]
[1733656741694,0.55383176,99402.0,99401.0,0.01230581]
[1733656742397,0.55383176,99402.0,99401.0,0.00413068]
[1733656742592,0.55383176,99402.0,99401.0,0.01230613]
[1733656743092,0.70967384,99402.0,99401.0,0.01230613]
[1733656743498,0.70967384,99402.0,99401.0,0.00413068]
[1733656743693,0.55383176,99402.0,99401.0,0.00413068]
[1733656744593,0.55383176,99402.0,99401.0,0.0185946]
[1733656744899,0.55383176,99402.0,99401.0,0.01859424]
[1733656746496,0.70977066,99402.0,99401.0,0.01859424]
[1733656746703,0.55383176,99402.0,99401.0,0.01859424]
[1733656747202,0.55383176,99402.0,99401.0,0.01859441]
[1733656747402,0.41987901,99402.0,99401.0,0.01859441]
[1733656747602,0.41987901,99402.0,99401.0,0.01859422]
[1733656747992,0.55428868,99402.0,99401.0,0.01859422]
[1733656750604,0.5543416,99402.0,99401.0,0.01859422]
[1733656751202,0.41987727,99402.0,99401.0,0.02488257]
[1733656751398,0.41987727,99402.0,99401.0,0.02543257]
[1733656754902,0.55426136,99402.0,99401.0,0.01914422]
[1733656755095,0.55426136,99402.0,99401.0,0.01285556]
[1733656755306,0.55426136,99402.0,99401.0,0.01433556]
[1733656757805,0.91506136,99402.0,99401.0,0.01433556]
[1733656758310,1.07074878,99402.0,99401.0,0.01433596]
[1733656758513,1.12628369,99402.0,99401.0,0.01433596]
[1733656758710,0.91506136,99402.0,99401.0,0.01433596]
[1733656759803,1.07073634,99402.0,99401.0,0.01433596]
[1733656761004,0.91506136,99402.0,99401.0,0.01433596]
[1733656761402,1.07076931,99402.0,99401.0,0.01433596]
[1733656762505,1.07079406,99402.0,99401.0,0.01433596]
[1733656762714,0.91506136,99402.0,99401.0,0.01433596]
[1733656762914,1.07080769,99402.0,99401.0,0.01433596]
[1733656765404,1.02133306,99402.0,99401.0,0.00616068]
[1733656765608,1.07023907,99402.0,99401.0,0.01433602]
[1733656766216,0.91467036,99402.0,99401.0,0.01433602]
[1733656766513,0.91467036,99402.0,99401.0,0.02062465]
[1733656767504,0.91467036,99402.0,99401.0,0.02062463]
[1733656768109,0.91467036,99402.0,99401.0,0.01433602]
[1733656769508,0.91467036,99402.0,99401.0,0.02062462]
[1733656769709,0.91467036,99402.0,99401.0,0.01433602]
[1733656770204,0.91467036,99402.0,99401.0,0.02062464]
[1733656770611,0.91467036,99402.0,99401.0,0.01433602]
[1733656773514,1.07039668,99402.0,99401.0,0.01433602]
[1733656775017,1.07041152,99402.0,99401.0,0.01433602]
[1733656777719,1.07041152,99402.0,99401.0,0.01433616]
[1733656778622,0.91475051,99402.0,99401.0,0.01433616]
[1733656779515,0.91475051,99402.0,99401.0,0.01433607]
[1733656781220,0.91475051,99402.0,99401.0,0.00930506]
[1733656781416,0.91475051,99402.0,99401.0,0.01433612]
[1733656783127,0.91475051,99402.0,99401.0,0.01119174]
[1733656783324,0.91475051,99402.0,99401.0,0.01433604]
[1733656783924,0.55395051,99402.0,99401.0,0.01433604]
[1733656785723,0.55395051,99402.0,99401.0,0.00930505]
[1733656786022,0.55395051,99402.0,99401.0,0.01433612]
[1733656788335,0.70961473,99402.0,99401.0,0.01433612]
[1733656788628,0.95105177,99402.0,99401.0,0.01433612]
[1733656789421,0.70961473,99402.0,99401.0,0.01433612]
[1733656789829,0.70965174,99402.0,99401.0,0.01433612]
[1733656791731,0.70965174,99402.0,99401.0,0.01433613]
[1733656792534,0.95109119,99402.0,99401.0,0.01433613]
[1733656792721,2.45109119,99402.0,99401.0,0.01433613]
[1733656793127,2.45109874,99402.0,99401.0,0.01133613]
[1733656793340,2.45109874,99402.0,99401.0,0.01233613]
[1733656793341,0.95609874,99402.0,99401.0,0.01233613]
[1733656793636,0.95607351,99402.0,99401.0,0.01233613]
[1733656793847,0.71465174,99402.0,99401.0,0.01233613]
[1733656794327,0.71765174,99402.0,99401.0,0.01133613]
[1733656794633,0.89450973,99402.0,99401.0,0.01133613]
[1733656794833,0.8938042,99402.0,99401.0,0.01133613]
[1733656795039,0.8938042,99402.0,99389.0,0.0101]
[1733656795337,0.3608,99390.0,99385.0,0.0331]
[1733656795639,0.21121371,99387.0,99386.0,0.01132038]
[1733656795936,0.3449785,99387.0,99386.0,0.01132038]
[1733656796125,0.39388682,99387.0,99386.0,0.01132038]
[1733656796333,0.04890832,99387.0,99386.0,0.01132038]
[1733656796526,0.22993786,99389.0,99386.0,0.01132038]
[1733656796732,0.22993786,99389.0,99387.0,0.01180038]
[1733656797036,0.22993786,99389.0,99388.0,0.00503128]
[1733656798431,0.04890832,99389.0,99388.0,0.00503128]
[1733656799828,0.04890945,99389.0,99388.0,0.00503128]
[1733656801043,0.0588311,99389.0,99388.0,0.00503128]
[1733656801631,0.23982988,99389.0,99388.0,0.00503128]
[1733656801830,0.0588311,99389.0,99388.0,0.00503128]
[1733656802036,0.23982988,99389.0,99388.0,0.00503128]
[1733656802236,0.0588311,99389.0,99388.0,0.00503128]
[1733656802738,0.0588311,99389.0,99387.0,0.00048]
[1733656803042,0.04890945,99388.0,99387.0,0.00048]
[1733656803338,0.04890945,99388.0,99387.0,0.01180093]
[1733656803833,0.04890945,99389.0,99387.0,0.01180093]
[1733656804031,0.04890945,99388.0,99387.0,0.00048]
[1733656804235,0.04890945,99389.0,99387.0,0.00551155]
[1733656804440,0.04890945,99388.0,99387.0,0.00048]
[1733656804742,0.18093432,99388.0,99387.0,0.01180069]
[1733656805643,0.04891061,99388.0,99387.0,0.01180069]
[1733656806142,0.04891061,99388.0,99387.0,0.01180063]
[1733656806439,0.04891061,99388.0,99387.0,0.00676924]
[1733656807335,0.04891061,99388.0,99387.0,0.00048]
[1733656808941,0.04891061,99388.0,99387.0,0.01494529]
[1733656809444,0.04891005,99388.0,99387.0,0.01494529]
[1733656809836,0.04891005,99388.0,99387.0,0.00048]
[1733656811044,0.04891005,99388.0,99387.0,0.00865596]
[1733656811437,0.1939601,99389.0,99387.0,0.00865596]
[1733656811636,0.17336143,99388.0,99387.0,0.00048]
[1733656811935,0.1733952,99388.0,99387.0,0.00865599]
[1733656812340,0.27447919,99388.0,99358.0,0.36076]
[1733656812641,0.02059867,99389.0,99359.0,0.01878623]
[1733656812642,0.21108149,99370.0,99359.0,0.01878623]
[1733656812836,0.12448543,99369.0,99360.0,0.01878623]
[1733656813031,0.1733952,99368.0,99361.0,0.01249697]
[1733656813341,0.1733952,99367.0,99362.0,0.01889951]
[1733656813536,0.21108149,99372.0,99363.0,0.01878623]
[1733656813537,0.1733952,99366.0,99363.0,0.01878623]
[1733656813735,0.21108149,99372.0,99364.0,0.01878623]
[1733656813736,0.1733952,99365.0,99364.0,0.01878623]
[1733656814449,0.04890977,99365.0,99364.0,0.01878623]
[1733656814636,0.21108149,99371.0,99364.0,0.01878623]
[1733656814943,0.38447669,99370.0,99365.0,0.01878623]
[1733656815139,0.38447669,99369.0,99366.0,0.01878623]
[1733656815341,0.1733952,99368.0,99367.0,0.01878623]
[1733656815838,0.21108149,99369.0,99367.0,0.01878623]
[1733656816039,0.21108149,99369.0,99368.0,0.00628926]
[1733656816238,0.1733952,99369.0,99368.0,0.00628926]
[1733656816642,0.1733952,99369.0,99368.0,0.00628941]
[1733656816643,0.04890977,99369.0,99368.0,0.00628941]
[1733656816936,0.1733952,99369.0,99368.0,0.00628941]
[1733656817134,0.001,99371.0,99368.0,0.00628941]
[1733656817342,0.39024816,99370.0,99369.0,0.0062894]
[1733656817641,0.12448543,99370.0,99369.0,0.0062894]
[1733656817846,0.24123599,99374.0,99369.0,0.0062894]
[1733656818040,0.24123599,99374.0,99370.0,0.0062894]
[1733656818238,0.24123599,99373.0,99371.0,0.0062894]
[1733656818546,0.0101,99376.0,99372.0,0.0062894]
[1733656818752,0.23557699,99375.0,99373.0,0.0062894]
[1733656818944,0.23557699,99375.0,99369.0,0.003]
[1733656818945,0.23557699,99375.0,99374.0,0.0062894]
[1733656820143,0.23657699,99375.0,99374.0,0.0062894]
[1733656821553,0.23757699,99375.0,99374.0,0.0062894]
[1733656821849,0.23657699,99375.0,99374.0,0.0062894]
[1733656822144,0.23757699,99375.0,99374.0,0.0062894]
[1733656822356,0.23757699,99375.0,99374.0,0.011321]
[1733656822540,0.23657699,99375.0,99374.0,0.011321]
[1733656822742,0.23757699,99375.0,99374.0,0.011321]
[1733656823537,0.23657699,99375.0,99374.0,0.011321]
[1733656823743,0.23757699,99375.0,99374.0,0.011321]
[1733656824358,0.23064866,99375.0,99374.0,0.01477834]
[1733656825450,0.22964866,99375.0,99374.0,0.01477834]
[1733656825643,0.23064866,99375.0,99374.0,0.01477834]
[1733656826545,0.23064866,99375.0,99374.0,0.01446575]
[1733656826747,0.22964866,99375.0,99374.0,0.01446575]
[1733656826959,0.23064866,99375.0,99374.0,0.01446575]
[1733656827537,0.22964866,99375.0,99374.0,0.01446575]
[1733656827746,0.23064866,99375.0,99374.0,0.01446575]
[1733656828641,0.22964866,99375.0,99374.0,0.01446575]
[1733656828959,0.23064866,99375.0,99374.0,0.01446575]
[1733656831246,0.22964866,99375.0,99374.0,0.01446575]
[1733656831449,0.23064866,99375.0,99374.0,0.01446575]
[1733656832653,0.22964866,99375.0,99374.0,0.01446575]
[1733656832853,0.23064866,99375.0,99371.0,0.00031242]
[1733656833045,0.22864866,99374.0,99365.0,0.04068036]
[1733656833250,0.23874866,99373.0,99365.0,0.04068036]
[1733656833457,0.21119185,99368.0,99365.0,0.04068036]
[1733656833658,0.28423599,99373.0,99365.0,0.04068036]
[1733656833659,0.17973676,99367.0,99365.0,0.04068036]
[1733656833859,0.22864866,99366.0,99365.0,0.04068036]
[1733656834253,0.22780974,99366.0,99365.0,0.04068036]
[1733656834850,0.22780974,99366.0,99365.0,0.04268036]
[1733656835755,0.22780974,99366.0,99365.0,0.04168036]
[1733656835955,0.22780974,99366.0,99365.0,0.04368036]
[1733656839564,0.22780974,99366.0,99365.0,0.04268036]
[1733656839758,0.22780974,99366.0,99365.0,0.04368036]
[1733656840952,0.22780974,99366.0,99365.0,0.04897015]
[1733656841164,0.22780974,99366.0,99365.0,0.01957015]
[1733656841359,0.04891339,99366.0,99365.0,0.01957015]
[1733656842968,0.04891339,99366.0,99365.0,0.02460199]
[1733656844965,0.04891339,99366.0,99365.0,0.02800689]
[1733656845465,0.04891339,99366.0,99365.0,0.02700689]
[1733656846764,0.18106352,99366.0,99365.0,0.02700689]
[1733656847076,0.04891339,99366.0,99365.0,0.01572653]
[1733656847266,0.00010712,99366.0,99365.0,0.01572653]
[1733656847461,0.22741669,99366.0,99362.0,0.00042578]
[1733656847662,0.3608,99363.0,99362.0,0.00011328]
[1733656847874,0.58810957,99363.0,99362.0,0.00011328]
[1733656848766,0.59010957,99363.0,99362.0,0.00011328]
[1733656849276,0.5889553,99363.0,99362.0,0.00011328]
[1733656849471,0.5899553,99363.0,99362.0,0.00011328]
[1733656852368,0.58996105,99363.0,99362.0,0.00011328]
[1733656854484,0.41271837,99363.0,99362.0,0.00011328]
[1733656855474,0.41271837,99363.0,99362.0,0.00640365]
[1733656857480,0.41271837,99363.0,99362.0,0.0041163]
[1733656859084,0.58904754,99363.0,99362.0,0.0041163]
[1733656859484,0.58904754,99363.0,99362.0,0.00726159]
[1733656862783,0.58904754,99363.0,99354.0,5.846e-05]
[1733656862985,0.3608,99355.0,99354.0,5.846e-05]
[1733656863191,0.40971837,99355.0,99354.0,0.00320391]
[1733656863375,0.47501837,99355.0,99354.0,0.00320391]
[1733656864382,0.47502283,99355.0,99354.0,0.00520391]
[1733656864985,0.47502283,99355.0,99354.0,0.00620391]
[1733656865481,0.47502283,99355.0,99354.0,0.01249481]
[1733656865688,0.47502283,99355.0,99354.0,0.01149481]
[1733656865885,0.47502283,99355.0,99354.0,0.01249481]
[1733656866284,0.47502283,99355.0,99354.0,0.00305846]
[1733656866580,0.47502283,99355.0,99354.0,0.01249482]
[1733656867383,0.47502283,99355.0,99354.0,0.01752756]
[1733656867888,0.47502283,99355.0,99354.0,0.01552756]
[1733656868478,0.47502283,99355.0,99354.0,0.01452756]
[1733656869883,0.47502283,99355.0,99354.0,0.00320392]
[1733656870078,0.47502283,99355.0,99354.0,0.01452757]
[1733656871684,0.65587847,99355.0,99354.0,5.846e-05]
[1733656871873,0.65587847,99355.0,99354.0,0.01452757]
[1733656872077,0.65587864,99355.0,99354.0,0.01452757]
[1733656872477,0.65587864,99355.0,99354.0,0.00509119]
[1733656873486,0.475023,99355.0,99354.0,0.00509119]
[1733656873687,0.475023,99355.0,99354.0,5.846e-05]
[1733656875587,0.65091883,99355.0,99354.0,5.846e-05]
[1733656875793,0.65091883,99355.0,99354.0,0.01452757]
[1733656876295,0.29011883,99355.0,99354.0,0.01483998]
[1733656876488,0.475023,99355.0,99354.0,0.01452757]
[1733656876691,0.475023,99355.0,99354.0,0.00405846]
[1733656876990,0.475023,99355.0,99354.0,0.01852758]
[1733656877690,0.476023,99355.0,99354.0,0.02052758]
[1733656878781,0.476023,99355.0,99354.0,0.01852758]
[1733656878993,0.476023,99355.0,99354.0,0.01952758]
[1733656879193,0.475023,99355.0,99354.0,0.01552758]
[1733656879489,0.6342469,99355.0,99354.0,0.01852758]
[1733656880382,0.6342469,99355.0,99354.0,0.01752758]
[1733656880590,0.6342469,99355.0,99354.0,0.01652803]
[1733656880792,0.6342469,99355.0,99354.0,0.01752803]
[1733656881387,0.6342469,99355.0,99354.0,0.01652803]
[1733656881597,0.475023,99355.0,99354.0,0.01652803]
[1733656881891,0.63401841,99355.0,99354.0,0.01652803]
[1733656882997,0.63401841,99355.0,99354.0,0.01452803]
[1733656883294,0.475023,99355.0,99354.0,0.01452803]
[1733656883492,0.63403547,99355.0,99354.0,0.01452803]
[1733656883686,0.476023,99355.0,99354.0,0.01452803]
[1733656884684,0.63499817,99355.0,99354.0,0.01452803]
[1733656885684,0.63499817,99355.0,99347.0,0.00150974]
[1733656885893,0.18099033,99349.0,99347.0,0.00150974]
[1733656886594,0.409723,99348.0,99347.0,0.00150974]
[1733656886804,0.454988,99348.0,99347.0,0.00350974]
[1733656887012,0.454988,99348.0,99347.0,0.00450974]
[1733656890084,0.094188,99348.0,99347.0,0.00350974]
[1733656890896,0.095188,99348.0,99347.0,0.00150974]
[1733656891090,0.096188,99348.0,99347.0,0.00150974]
[1733656894404,0.456988,99348.0,99347.0,0.00150974]
[1733656895689,0.456988,99348.0,99347.0,0.0065428]
[1733656896898,0.455988,99348.0,99347.0,0.0065428]
[1733656897106,0.457988,99348.0,99347.0,0.0065428]
[1733656897291,0.097188,99348.0,99347.0,0.0065428]
[1733656897502,0.457988,99348.0,99347.0,0.0065428]
[1733656897697,0.457988,99348.0,99347.0,0.00968846]
[1733656897894,0.456988,99348.0,99347.0,0.00968846]
[1733656898498,0.454988,99348.0,99347.0,0.00968846]
[1733656898700,0.454988,99348.0,99347.0,0.01068846]
[1733656899104,0.094188,99348.0,99347.0,0.00968846]
[1733656899300,0.4549911,99348.0,99347.0,0.00968846]
[1733656900302,0.0941911,99348.0,99347.0,0.00968846]
[1733656900604,0.4549911,99348.0,99347.0,0.00968846]
[1733656900995,0.4559911,99348.0,99347.0,0.00968846]
[1733656901596,0.4549911,99348.0,99347.0,0.00968846]
[1733656901795,0.0951911,99348.0,99347.0,0.00968846]
[1733656902001,0.4559911,99348.0,99347.0,0.00968846]
[1733656902509,0.4569911,99348.0,99347.0,0.00968846]
[1733656902910,0.4579911,99348.0,99347.0,0.00968846]
[1733656903509,0.0971911,99348.0,99347.0,0.00968846]
[1733656903710,0.4579911,99348.0,99347.0,0.00968846]
[1733656904819,0.4569911,99348.0,99347.0,0.00968846]
[1733656905720,0.4117261,99348.0,99347.0,0.05495346]
[1733656905905,0.0303,99355.0,99347.0,0.05495346]
[1733656905906,0.15087056,99351.0,99347.0,0.38299342]
[1733656906111,0.06017056,99351.0,99350.0,0.045264]
[1733656906412,0.005,99356.0,99355.0,0.045262]
[1733656906600,0.005,99356.0,99355.0,0.06594568]
[1733656906804,0.005,99356.0,99355.0,0.07054072]
[1733656907011,0.005,99356.0,99355.0,0.08303515]
[1733656907012,0.09546845,99356.0,99355.0,0.08303515]
[1733656907208,0.05956845,99356.0,99355.0,0.38303515]
[1733656907406,0.12062827,99363.0,99355.0,0.62400688]
[1733656907714,0.12062827,99378.0,99362.0,0.3608]
[1733656908010,0.12062827,99385.0,99377.0,0.3608]
[1733656908213,0.12062827,99388.0,99384.0,0.22582659]
[1733656908515,0.12062827,99395.0,99393.0,0.045244]
[1733656908716,0.00011378,99394.0,99393.0,0.045244]
[1733656908916,0.00011378,99394.0,99393.0,0.05970637]
[1733656909505,0.00011378,99394.0,99393.0,0.01446237]
[1733656909808,0.00311378,99394.0,99393.0,0.01446237]
[1733656910213,0.00311378,99394.0,99393.0,0.00817438]
[1733656911608,0.00411378,99394.0,99393.0,0.00817438]
[1733656913311,0.04935778,99394.0,99393.0,0.00817438]
[1733656916215,0.04935778,99394.0,99393.0,0.00817466]
[1733656916606,0.04935778,99394.0,99393.0,0.00314399]
[1733656917012,0.04935778,99394.0,99393.0,0.00314418]
[1733656917221,0.06164651,99394.0,99393.0,0.00314418]
[1733656922023,0.04935778,99394.0,99393.0,0.00314418]
[1733656923824,0.00411378,99394.0,99387.0,0.045247]
[1733656924123,0.045247,99388.0,99387.0,0.045247]
[1733656924323,0.045247,99388.0,99387.0,0.04839125]
[1733656927030,0.045247,99388.0,99387.0,0.00314425]
[1733656927231,0.045247,99388.0,99387.0,0.00817506]
[1733656929630,0.046247,99388.0,99387.0,0.00817506]
[1733656930223,0.046247,99388.0,99378.0,0.3608]
[1733656930422,0.046247,99388.0,99379.0,0.02687443]
[1733656930631,0.045247,99387.0,99380.0,0.02687441]
[1733656930832,0.045249,99382.0,99381.0,0.02687441]
[1733656931826,0.045249,99382.0,99381.0,0.01446362]
[1733656932728,0.045249,99382.0,99381.0,0.01546362]
[1733656933230,0.045249,99382.0,99381.0,0.01446362]
[1733656933436,0.045249,99382.0,99381.0,0.01546362]
[1733656933824,0.045249,99382.0,99381.0,0.01446362]
[1733656934127,0.045249,99382.0,99381.0,0.01546362]
[1733656934329,0.045249,99382.0,99381.0,0.001]
[1733656934532,0.045249,99382.0,99381.0,0.01546391]
[1733656935538,0.16587727,99382.0,99381.0,0.01357732]
[1733656935839,0.16587727,99382.0,99381.0,0.01860824]
[1733656936440,0.045249,99382.0,99381.0,0.01860824]
[1733656937740,0.045249,99382.0,99381.0,0.19940746]
[1733656938230,0.045249,99382.0,99381.0,0.01860824]
[1733656938433,0.094156,99382.0,99381.0,0.01860872]
[1733656939129,0.094156,99382.0,99381.0,0.01760872]
[1733656939330,0.094156,99382.0,99381.0,0.06285872]
[1733656941245,0.094156,99382.0,99381.0,0.06385872]
[1733656941633,0.094156,99382.0,99381.0,0.06585872]
[1733656941833,0.094156,99382.0,99381.0,0.06485872]
[1733656942038,0.094156,99382.0,99381.0,0.06585872]
[1733656942940,0.094156,99382.0,99381.0,0.06385872]
[1733656943237,0.094156,99382.0,99381.0,0.06585872]
[1733656944644,0.094156,99382.0,99381.0,0.06385872]
[1733656944847,0.094156,99382.0,99381.0,0.06585872]
[1733656945239,0.094156,99382.0,99381.0,0.06385872]
[1733656945548,0.094156,99382.0,99381.0,0.06171439]
[1733656945750,0.094156,99382.0,99381.0,0.06271439]
[1733656946635,0.094156,99382.0,99381.0,0.24351361]
[1733656946636,0.1960861,99382.0,99381.0,0.24351361]
[1733656947030,0.1960861,99382.0,99381.0,0.06271439]
[1733656948043,0.1960861,99382.0,99381.0,0.24354748]
[1733656948441,0.1960861,99382.0,99381.0,0.06271439]
[1733656949043,0.045249,99382.0,99381.0,0.06271439]
[1733656949434,0.1960861,99382.0,99381.0,0.06271439]
[1733656950632,0.045249,99382.0,99381.0,0.06271439]
[1733656950835,0.1960861,99382.0,99381.0,0.06271439]
[1733656952447,0.1960861,99382.0,99381.0,0.24354115]
[1733656952741,0.1960861,99382.0,99381.0,0.30357764]
[1733656952742,0.045249,99382.0,99381.0,0.30357764]
[1733656953739,0.09415552,99382.0,99381.0,0.06271439]
[1733656954143,0.09415552,99382.0,99381.0,0.06471439]
[1733656954448,0.04890652,99382.0,99381.0,0.43598404]
[1733656954637,0.04890397,99383.0,99382.0,0.045249]
[1733656954837,0.04890397,99383.0,99382.0,0.07218304]
[1733656955742,0.18394912,99384.0,99383.0,0.045249]
[1733656955942,0.18394912,99384.0,99383.0,0.07218304]
[1733656956142,0.18394912,99384.0,99383.0,0.045249]
[1733656956449,0.0331,99384.0,99383.0,0.0721799]
[1733656957440,0.0331,99384.0,99383.0,0.0751799]
[1733656958145,0.0331,99384.0,99383.0,0.0801799]
[1733656958146,0.0341,99384.0,99383.0,0.0801799]
[1733656959451,0.0341,99384.0,99383.0,0.2608289]
[1733656959747,0.0341,99384.0,99383.0,0.233898]
[1733656959943,0.0341,99384.0,99383.0,0.26082116]
[1733656961742,0.0114624,99384.0,99383.0,0.44097216]
[1733656966746,0.0114624,99384.0,99383.0,0.08017216]
[1733656966952,0.0114624,99384.0,99383.0,0.44097216]
[1733656967155,0.0114624,99384.0,99383.0,0.44097175]
[1733656970742,0.0114624,99384.0,99383.0,0.44096592]
[1733656971145,0.0114624,99384.0,99383.0,1.01297075]
[1733656971146,1e-06,99384.0,99383.0,1.01297075]
[1733656971350,0.13571206,99398.0,99383.0,1.01297075]
[1733656971351,0.0151,99398.0,99393.0,0.045244]
[1733656971550,0.0308,99404.0,99393.0,1.00395065]
[1733656971755,0.0308,99404.0,99393.0,0.69879619]
[1733656972447,0.0308,99404.0,99393.0,0.99943873]
[1733656972652,0.0308,99404.0,99393.0,1.00143873]
[1733656972954,0.0308,99404.0,99393.0,1.00243873]
[1733656973252,0.0308,99404.0,99393.0,0.70179619]
[1733656973454,0.0308,99404.0,99393.0,0.73652126]
[1733656974043,0.0308,99404.0,99393.0,0.73651901]
[1733656974451,0.0308,99404.0,99393.0,0.43595867]
[1733656974646,0.0308,99404.0,99393.0,0.44810999]
[1733656975455,0.0308,99404.0,99393.0,0.08730999]
[1733656975659,0.0308,99404.0,99393.0,0.44810999]
[1733656975848,0.12061206,99403.0,99393.0,0.44810999]
[1733656976550,0.15141206,99404.0,99393.0,0.44810999]
[1733656976748,0.15141206,99404.0,99403.0,0.04524]
[1733656977057,0.15141206,99404.0,99403.0,0.07215467]
[1733656977863,0.15241206,99404.0,99403.0,0.07715467]
[1733656978356,0.15241206,99404.0,99403.0,0.07915467]
[1733656978663,0.0318,99404.0,99403.0,0.07915467]
[1733656980266,0.0308,99404.0,99403.0,0.07415467]
[1733656980458,0.0318,99404.0,99403.0,0.07915467]
[1733656980660,0.0318,99404.0,99403.0,0.08895485]
[1733656980859,0.0308,99404.0,99403.0,0.08595485]
[1733656981066,0.0308,99404.0,99403.0,0.09095485]
[1733656984253,0.0318,99404.0,99403.0,0.09095485]
[1733656992359,0.0318,99404.0,99403.0,0.09395485]
[1733656992554,0.0318,99404.0,99403.0,0.09595485]
[1733656994056,0.0318,99404.0,99403.0,0.09195485]
[1733656994257,0.0318,99404.0,99403.0,0.08795485]
[1733656994258,0.0308,99404.0,99403.0,0.08795485]
[1733656994458,0.0318,99404.0,99403.0,0.09595485]
[1733656994854,0.0318,99404.0,99403.0,0.08795485]
[1733656994855,0.0308,99404.0,99403.0,0.08795485]
[1733656995056,0.0318,99404.0,99403.0,0.09395485]
[1733656995553,0.0308,99404.0,99403.0,0.09094893]
[1733656995755,0.0308,99404.0,99403.0,0.08894893]
[1733656996058,0.0308,99404.0,99403.0,0.08994893]
[1733656996254,0.0308,99404.0,99403.0,0.07750041]
[1733656996456,0.15141206,99404.0,99403.0,0.07750041]
[1733656996962,0.15141206,99404.0,99403.0,0.08366591]
[1733656997164,0.15141206,99404.0,99403.0,0.08995296]
[1733656997568,0.0308,99404.0,99403.0,0.08995296]
[1733656998568,0.076039,99404.0,99403.0,0.04005296]
[1733656998762,0.076039,99404.0,99403.0,0.02560039]
[1733656998970,0.076039,99404.0,99403.0,0.2083896]